bitfinex/quotes_BTCUSD_20240731
["timestamp","ask_amount","ask_price","bid_price","bid_amount"]
[1722405013128,0.0015,66092.0,66091.0,1.13026504]
[1722405013336,0.0015,66092.0,66091.0,1.43287804]
[1722405013540,0.0015,66092.0,66091.0,1.13026504]
[1722405013750,0.0015,66092.0,66091.0,1.43287804]
[1722405014233,0.0015,66092.0,66091.0,1.44687804]
[1722405014445,0.0015,66092.0,66091.0,1.59117804]
[1722405014655,0.00953,66111.0,66091.0,1.59117804]
[1722405014656,0.00853,66111.0,66108.0,1.377172]
[1722405014892,0.00853,66118.0,66114.0,0.45376]
[1722405015131,0.00853,66118.0,66114.0,1.33240704]
[1722405015338,0.00853,66118.0,66114.0,1.55960704]
[1722405016189,0.00853,66118.0,66114.0,0.94559304]
[1722405016411,0.00853,66118.0,66114.0,1.02990004]
[1722405017280,0.00953,66118.0,66114.0,0.41588604]
[1722405017490,0.07273,66115.0,66114.0,0.41588604]
[1722405017700,0.08017794,66115.0,66114.0,0.41588604]
[1722405017905,0.07991476,66115.0,66114.0,0.71839304]
[1722405018153,0.07991476,66115.0,66114.0,1.41640004]
[1722405018154,0.01571476,66115.0,66114.0,1.41640004]
[1722405018361,0.01571476,66115.0,66114.0,1.27610004]
[1722405018567,0.00826682,66115.0,66114.0,1.05790004]
[1722405018779,0.00826682,66115.0,66114.0,0.73239304]
[1722405019002,0.00826682,66115.0,66114.0,1.03490004]
[1722405019848,0.00826682,66115.0,66114.0,0.73239304]
[1722405020707,0.00826682,66115.0,66114.0,0.42988604]
[1722405021133,0.00826682,66115.0,66114.0,0.27863304]
[1722405021571,0.01570816,66115.0,66114.0,0.27863304]
[1722405021789,0.16795916,66115.0,66114.0,0.27863304]
[1722405022208,0.23065916,66115.0,66114.0,0.27863304]
[1722405023134,0.23065916,66115.0,66114.0,0.25063304]
[1722405023345,0.23065916,66115.0,66114.0,0.26463304]
[1722405023346,0.53316216,66115.0,66114.0,0.26463304]
[1722405023780,0.83566516,66115.0,66114.0,0.26463304]
[1722405024411,0.83566516,66115.0,66114.0,0.17863304]
[1722405024619,0.83566516,66115.0,66114.0,0.16463304]
[1722405024819,0.83566516,66115.0,66114.0,0.15063304]
[1722405025027,0.83566516,66115.0,66114.0,0.16463304]
[1722405025247,0.83566516,66115.0,66114.0,0.15763304]
[1722405025463,0.07940816,66115.0,66114.0,0.15763304]
[1722405025705,0.07940816,66115.0,66114.0,0.16463304]
[1722405026151,0.07940816,66115.0,66114.0,0.31588604]
[1722405026356,0.07940816,66115.0,66114.0,0.30888604]
[1722405026614,0.07940816,66115.0,66114.0,0.15763304]
[1722405026821,0.01570816,66115.0,66114.0,0.71839304]
[1722405027102,0.00826682,66115.0,66114.0,1.02090004]
[1722405027308,0.00826682,66115.0,66114.0,1.03690004]
[1722405027515,0.00826682,66115.0,66114.0,1.04190004]
[1722405027918,0.00796234,66115.0,66114.0,1.04290004]
[1722405028296,0.00796234,66115.0,66114.0,1.04390004]
[1722405028550,0.00796234,66115.0,66114.0,1.05790004]
[1722405028960,0.00796234,66115.0,66114.0,1.04390004]
[1722405029135,0.00796234,66115.0,66114.0,1.05790004]
[1722405029622,0.00796234,66115.0,66114.0,1.04390004]
[1722405030031,0.00796234,66115.0,66114.0,1.05790004]
[1722405030433,0.00796234,66115.0,66114.0,1.04390004]
[1722405030785,0.00796234,66115.0,66114.0,1.36940704]
[1722405030949,0.00796234,66115.0,66114.0,1.35540704]
[1722405031163,0.00796234,66115.0,66114.0,1.02990004]
[1722405031364,0.00796234,66115.0,66114.0,1.04390004]
[1722405031978,0.00796234,66115.0,66114.0,1.05790004]
[1722405032181,0.00796234,66115.0,66114.0,1.04390004]
[1722405032628,0.00796234,66115.0,66114.0,1.05790004]
[1722405032778,0.00796234,66115.0,66114.0,1.02990004]
[1722405033001,0.00796234,66115.0,66114.0,1.04390004]
[1722405033271,0.00796234,66115.0,66114.0,1.34640704]
[1722405033425,0.00796234,66115.0,66114.0,1.72730704]
[1722405034219,0.00796234,66115.0,66114.0,1.66470704]
[1722405034483,0.00796234,66115.0,66114.0,1.67870704]
[1722405034645,0.00796234,66115.0,66114.0,1.66470704]
[1722405035043,0.00796234,66115.0,66114.0,1.68470704]
[1722405035450,0.00796234,66115.0,66114.0,1.67870704]
[1722405035679,0.00853,66118.0,66117.0,0.733641]
[1722405035922,0.00853,66118.0,66117.0,1.98918671]
[1722405036083,0.00853,66118.0,66117.0,2.62454471]
[1722405036283,0.00853,66125.0,66124.0,0.865155]
[1722405036500,0.00853,66125.0,66124.0,2.05301204]
[1722405038015,0.00826782,66125.0,66124.0,2.06701204]
[1722405038661,0.00826782,66125.0,66124.0,1.77855004]
[1722405039097,0.00826782,66125.0,66124.0,1.76455004]
[1722405039308,0.00826782,66125.0,66124.0,1.65055004]
[1722405039540,0.00826782,66125.0,66124.0,1.66455004]
[1722405039749,0.00826782,66125.0,66124.0,1.67855004]
[1722405040155,0.00826782,66125.0,66124.0,1.66455004]
[1722405040575,0.00826782,66125.0,66124.0,1.67855004]
[1722405040831,0.00826782,66125.0,66124.0,1.66455004]
[1722405041218,0.00826782,66125.0,66124.0,1.67855004]
[1722405042068,0.00826782,66125.0,66124.0,1.68755779]
[1722405044210,0.00826782,66125.0,66124.0,1.46935779]
[1722405045863,0.00826782,66125.0,66124.0,1.68755779]
[1722405046270,0.00826782,66125.0,66124.0,1.99001979]
[1722405047500,0.07429782,66136.0,66135.0,0.756027]
[1722405047704,0.07429782,66136.0,66135.0,0.92966004]
[1722405047943,0.0659,66138.0,66137.0,1.058407]
[1722405048142,0.0659,66138.0,66137.0,1.33204004]
[1722405048345,0.0659,66146.0,66145.0,1.058281]
[1722405048553,0.0015,66149.0,66145.0,0.90654804]
[1722405048756,0.0015,66149.0,66148.0,0.90651304]
[1722405048954,0.0015,66149.0,66148.0,1.00651304]
[1722405049169,0.0005,66149.0,66148.0,1.00651304]
[1722405049598,0.0005,66149.0,66148.0,0.70416104]
[1722405050321,0.0005,66149.0,66148.0,0.15063304]
[1722405050322,0.51742,66149.0,66148.0,0.15063304]
[1722405050523,1.122114,66149.0,66148.0,0.16463304]
[1722405050712,0.819767,66149.0,66148.0,0.16463304]
[1722405051011,0.900867,66149.0,66148.0,0.16463304]
[1722405051214,0.66246317,66149.0,66148.0,0.17663304]
[1722405051414,0.59798736,66149.0,66148.0,0.17663304]
[1722405051591,0.90033436,66149.0,66148.0,0.16463304]
[1722405051768,0.90033436,66149.0,66148.0,0.15063304]
[1722405051971,0.90033436,66149.0,66148.0,0.16963304]
[1722405052176,0.90033436,66149.0,66148.0,0.16163304]
[1722405052378,0.96505205,66149.0,66148.0,0.16163304]
[1722405052586,0.96505205,66149.0,66148.0,0.15063304]
[1722405052779,0.90033436,66149.0,66148.0,0.15663304]
[1722405052989,0.96490623,66149.0,66148.0,0.15663304]
[1722405053192,0.96490623,66149.0,66148.0,0.15063304]
[1722405053592,0.96490623,66149.0,66148.0,0.16563304]
[1722405053952,0.96490623,66149.0,66148.0,0.008]
[1722405054168,1.26725323,66149.0,66148.0,0.016]
[1722405054370,1.31235625,66149.0,66148.0,0.016]
[1722405054772,1.31946016,66149.0,66148.0,0.016]
[1722405054996,1.31946016,66149.0,66148.0,0.008]
[1722405055198,1.27435714,66149.0,66148.0,0.016]
[1722405055409,1.03966468,66149.0,66148.0,0.016]
[1722405055631,0.66966314,66149.0,66148.0,0.16663304]
[1722405055844,0.60509127,66149.0,66148.0,0.15863304]
[1722405056088,0.97323158,66149.0,66148.0,0.15663304]
[1722405056326,0.97323126,66149.0,66148.0,0.25663304]
[1722405056553,0.97323126,66149.0,66148.0,0.25063304]
[1722405056554,0.90743827,66149.0,66148.0,0.25063304]
[1722405056813,0.90743827,66149.0,66148.0,0.25963304]
[1722405057310,0.60509127,66149.0,66148.0,0.25963304]
[1722405057735,0.60509127,66149.0,66148.0,0.26663304]
[1722405058153,0.60509127,66149.0,66148.0,0.25063304]
[1722405058370,0.15157127,66149.0,66148.0,0.25663304]
[1722405058590,0.07625514,66156.0,66148.0,0.26663304]
[1722405058591,0.00853,66156.0,66148.0,0.26663304]
[1722405058813,0.00853,66156.0,66155.0,1.20875304]
[1722405059026,0.00853,66156.0,66155.0,1.30875304]
[1722405059238,0.44444115,66171.0,66155.0,1.30875304]
[1722405059239,0.0015,66174.0,66158.0,0.01]
[1722405059445,0.0015542,66173.0,66172.0,0.151121]
[1722405059653,0.0015542,66173.0,66172.0,0.1]
[1722405059862,0.0015542,66173.0,66172.0,0.70399604]
[1722405060692,0.0015542,66173.0,66172.0,0.74434248]
[1722405060899,0.0015,66174.0,66172.0,0.40175304]
[1722405061135,0.0015,66174.0,66173.0,0.25063304]
[1722405061593,0.152616,66174.0,66173.0,0.25063304]
[1722405062019,0.127616,66174.0,66173.0,0.25063304]
[1722405062441,0.127616,66174.0,66173.0,0.26463304]
[1722405062644,0.151111,66177.0,66173.0,0.26463304]
[1722405062851,0.151113,66176.0,66173.0,0.26463304]
[1722405063073,0.151116,66174.0,66173.0,0.26283304]
[1722405063280,0.453349,66174.0,66173.0,0.27683304]
[1722405063572,0.302178,66187.0,66178.0,0.151107]
[1722405063761,0.0015542,66181.0,66179.0,0.25063304]
[1722405063967,0.755515,66180.0,66179.0,0.25063304]
[1722405064172,0.453309,66180.0,66179.0,0.25063304]
[1722405064388,0.755515,66180.0,66179.0,0.25063304]
[1722405064594,0.453309,66180.0,66179.0,0.25063304]
[1722405064840,0.453349,66174.0,66173.0,0.011]
[1722405065057,0.515751,66174.0,66173.0,0.15063304]
[1722405065266,0.515751,66174.0,66173.0,0.26063304]
[1722405065480,0.2182,66187.0,66173.0,0.26063304]
[1722405065481,0.0757,66181.0,66173.0,0.26063304]
[1722405065746,0.151112,66176.0,66174.0,0.1]
[1722405065996,0.151107,66179.0,66175.0,0.15063304]
[1722405066222,0.38933057,66192.0,66178.0,0.15063304]
[1722405066435,0.302181,66186.0,66179.0,0.25063304]
[1722405066637,0.302194,66183.0,66179.0,0.15063304]
[1722405066839,0.151103,66180.0,66179.0,0.15063304]
[1722405067057,0.302186,66185.0,66179.0,0.25063304]
[1722405067275,0.1511,66181.0,66180.0,0.1]
[1722405067498,0.302186,66185.0,66180.0,0.25063304]
[1722405067499,0.159619,66182.0,66180.0,0.25063304]
[1722405067713,0.453301,66181.0,66180.0,0.1]
[1722405068137,0.45303882,66181.0,66180.0,0.1]
[1722405068353,0.151103,66180.0,66175.0,0.00893715]
[1722405068585,0.0015542,66180.0,66175.0,0.00893715]
[1722405068798,0.453328,66177.0,66176.0,0.15063304]
[1722405069212,0.46022465,66177.0,66176.0,0.25063304]
[1722405069850,0.76244365,66177.0,66176.0,0.1]
[1722405070053,0.82764365,66177.0,66176.0,0.1]
[1722405070258,0.75556,66176.0,66175.0,0.014]
[1722405070470,0.75556,66176.0,66175.0,0.16463304]
[1722405070675,0.76245691,66176.0,66175.0,0.26463304]
[1722405071087,0.76245691,66176.0,66175.0,0.25063304]
[1722405071330,0.00689691,66176.0,66175.0,0.25063304]
[1722405071535,0.15800891,66176.0,66175.0,0.26463304]
[1722405071946,0.00689691,66176.0,66175.0,0.25063304]
[1722405072172,0.00689691,66176.0,66175.0,0.26463304]
[1722405072386,0.00689691,66176.0,66175.0,0.27863304]
[1722405072801,0.302202,66181.0,66175.0,0.26463304]
[1722405072954,0.151106,66179.0,66176.0,0.25063304]
[1722405073412,0.220219,66182.0,66176.0,0.25063304]
[1722405073552,0.371318,66182.0,66176.0,0.25063304]
[1722405073764,0.06912,66182.0,66176.0,0.25063304]
[1722405074694,0.06912,66182.0,66176.0,0.25961329]
[1722405075049,0.06912,66182.0,66179.0,0.151103]
[1722405075251,0.06912,66182.0,66180.0,0.25063304]
[1722405076395,0.06912,66182.0,66180.0,0.26163304]
[1722405077644,0.06912,66182.0,66180.0,0.26263304]
[1722405077852,0.00135325,66181.0,66180.0,0.25063304]
[1722405078013,0.06912,66182.0,66180.0,0.26263304]
[1722405078220,0.06912,66182.0,66180.0,0.27563304]
[1722405078447,0.00689662,66181.0,66180.0,0.27563304]
[1722405078649,0.15799662,66181.0,66180.0,0.27563304]
[1722405078865,0.84289862,66181.0,66180.0,0.025]
[1722405079071,0.90339862,66181.0,66180.0,0.025]
[1722405079442,0.14789662,66181.0,66180.0,0.16363304]
[1722405079651,0.14789662,66181.0,66180.0,0.17663304]
[1722405080063,0.29899662,66181.0,66180.0,0.17663304]
[1722405080269,0.60119762,66181.0,66180.0,0.026]
[1722405080480,0.90339862,66181.0,66180.0,0.026]
[1722405081293,0.90339862,66181.0,66180.0,0.013]
[1722405081701,0.90339862,66181.0,66180.0,0.03598025]
[1722405082691,0.90339862,66181.0,66180.0,0.027]
[1722405082891,1.20559962,66181.0,66180.0,0.027]
[1722405083272,1.27188595,66181.0,66180.0,0.027]
[1722405083703,0.66748395,66181.0,66180.0,0.027]
[1722405083977,0.29899662,66181.0,66180.0,0.17763304]
[1722405084177,0.60119762,66181.0,66180.0,0.17763304]
[1722405084352,0.36550641,66181.0,66180.0,0.16363304]
[1722405084502,0.21569326,66181.0,66180.0,0.15063304]
[1722405084708,0.14918347,66181.0,66180.0,0.15163304]
[1722405084910,0.30028347,66181.0,66180.0,0.15163304]
[1722405085117,0.36542707,66181.0,66180.0,0.15163304]
[1722405085319,0.97111592,66181.0,66180.0,0.15663304]
[1722405085678,0.66891492,66181.0,66180.0,0.15163304]
[1722405085911,0.66762807,66181.0,66180.0,0.16063304]
[1722405086081,0.96982907,66181.0,66180.0,0.15963304]
[1722405086464,0.96982907,66181.0,66180.0,0.16763304]
[1722405087461,0.66748379,66181.0,66180.0,0.15863304]
[1722405087662,0.66748379,66181.0,66180.0,0.16663304]
[1722405088215,0.66748379,66181.0,66180.0,0.15863304]
[1722405088365,0.66748379,66181.0,66180.0,0.16763304]
[1722405088547,0.67284679,66181.0,66180.0,0.16763304]
[1722405088970,0.97504779,66181.0,66180.0,0.16763304]
[1722405090242,0.67284679,66181.0,66180.0,0.16763304]
[1722405090370,0.67284679,66181.0,66180.0,0.017]
[1722405090576,0.97504779,66181.0,66180.0,0.017]
[1722405090886,0.97498566,66181.0,66180.0,0.017]
[1722405091310,0.97473496,66181.0,66180.0,0.017]
[1722405091991,1.83281427,66181.0,66180.0,0.017]
[1722405092190,1.51061327,66181.0,66180.0,0.017]
[1722405092409,1.54061327,66181.0,66180.0,0.017]
[1722405092590,1.84254692,66181.0,66180.0,0.017]
[1722405093198,1.87069472,66181.0,66180.0,0.017]
[1722405093410,1.86940787,66181.0,66180.0,0.017]
[1722405093803,1.86940787,66181.0,66180.0,0.009]
[1722405094007,0.15115,66160.0,66157.0,0.06057]
[1722405094201,0.06640862,66159.0,66158.0,0.15063304]
[1722405094428,0.52654029,66159.0,66158.0,0.15063304]
[1722405094651,0.22423829,66159.0,66158.0,0.15063304]
[1722405094853,0.52654029,66159.0,66158.0,0.15063304]
[1722405095230,0.82884229,66159.0,66158.0,0.15063304]
[1722405095632,1.13114429,66159.0,66158.0,0.014]
[1722405095835,1.13114429,66159.0,66146.0,0.00018198]
[1722405095836,0.55893599,66159.0,66149.0,0.060579]
[1722405096034,0.06640862,66158.0,66150.0,0.15063304]
[1722405096235,0.151169,66151.0,66150.0,0.15063304]
[1722405096476,0.453507,66151.0,66150.0,0.15063304]
[1722405096695,0.00664134,66151.0,66150.0,0.15063304]
[1722405097011,0.302317,66156.0,66150.0,0.15063304]
[1722405097218,0.21784929,66155.0,66151.0,0.1]
[1722405097420,0.1384,66159.0,66152.0,0.15063304]
[1722405097421,0.10676679,66159.0,66152.0,0.15063304]
[1722405097635,0.09033359,66162.0,66153.0,0.1785]
[1722405097636,0.04516679,66162.0,66153.0,0.1785]
[1722405097808,0.06775019,66164.0,66154.0,0.15063304]
[1722405097809,0.06667613,66161.0,66154.0,0.15063304]
[1722405098006,0.04516679,66164.0,66155.0,0.1]
[1722405098224,0.151144,66162.0,66161.0,0.00026218]
[1722405098440,0.151144,66162.0,66161.0,0.15089522]
[1722405098441,0.06741887,66162.0,66161.0,0.15089522]
[1722405098593,0.453432,66162.0,66161.0,0.15089522]
[1722405098798,0.06741887,66162.0,66161.0,0.15089522]
[1722405099004,0.21829166,66163.0,66161.0,0.15089522]
[1722405099211,0.21829366,66162.0,66161.0,0.00026218]
[1722405099415,0.86803645,66162.0,66161.0,0.00026218]
[1722405099613,0.56574845,66162.0,66161.0,0.00026218]
[1722405099944,0.52058166,66162.0,66161.0,0.00026218]
[1722405100147,0.58833185,66162.0,66161.0,0.00026218]
[1722405100349,0.82286966,66162.0,66161.0,0.00726218]
[1722405100551,0.82286966,66162.0,66161.0,0.15789522]
[1722405100552,0.06779571,66162.0,66161.0,0.15789522]
[1722405100757,0.04519703,66166.0,66162.0,0.151144]
[1722405100961,0.04519047,66171.0,66163.0,0.25063304]
[1722405101164,0.04518883,66171.0,66166.0,0.151134]
[1722405101369,0.04518883,66171.0,66161.0,0.31755418]
[1722405101370,0.04518883,66172.0,66167.0,0.25063304]
[1722405101603,0.04518883,66170.0,66167.0,0.25063304]
[1722405101776,0.04518883,66171.0,66167.0,0.25063304]
[1722405101976,0.04518883,66168.0,66167.0,0.25063304]
[1722405102178,0.06778325,66170.0,66167.0,0.25063304]
[1722405102179,0.06778325,66169.0,66167.0,0.25063304]
[1722405102378,0.09037767,66170.0,66167.0,0.25063304]
[1722405102379,0.04522901,66168.0,66167.0,0.25063304]
[1722405102579,0.04522901,66169.0,66167.0,0.25063304]
[1722405102780,0.151112,66176.0,66167.0,0.40176504]
[1722405102979,0.04522854,66169.0,66167.0,0.25063304]
[1722405103196,0.04522854,66168.0,66167.0,0.25063304]
[1722405103610,0.09045709,66168.0,66167.0,0.26063304]
[1722405103806,0.15408927,66168.0,66167.0,0.26063304]
[1722405103956,0.15408927,66168.0,66167.0,0.27063304]
[1722405104152,0.15408927,66168.0,66167.0,0.26063304]
[1722405104153,0.17671159,66168.0,66167.0,0.26063304]
[1722405104471,0.17671159,66168.0,66167.0,0.26263304]
[1722405104836,0.21473,66168.0,66167.0,0.27563304]
[1722405104956,0.21473,66168.0,66167.0,0.26263304]
[1722405105154,0.15113,66168.0,66167.0,0.27563304]
[1722405105355,0.15113,66168.0,66167.0,0.26363304]
[1722405105356,0.11314726,66168.0,66167.0,0.26363304]
[1722405105579,0.302247,66171.0,66167.0,0.25063304]
[1722405105580,0.302252,66170.0,66167.0,0.25063304]
[1722405105778,0.15113,66168.0,66167.0,0.25063304]
[1722405105980,0.151126,66170.0,66167.0,0.25063304]
[1722405106185,0.13702076,66173.0,66167.0,0.25063304]
[1722405106384,0.113146,66168.0,66167.0,0.25063304]
[1722405106621,0.113146,66169.0,66167.0,0.25063304]
[1722405106974,0.005363,66181.0,66168.0,0.22334716]
[1722405107173,0.04654136,66173.0,66169.0,0.55288904]
[1722405107376,0.04525451,66173.0,66172.0,0.151121]
[1722405107593,0.04525451,66178.0,66177.0,0.302219]
[1722405107800,0.04524712,66179.0,66178.0,0.302215]
[1722405108003,0.00128685,66179.0,66178.0,0.70395504]
[1722405108502,0.04626606,66180.0,66179.0,0.151105]
[1722405108705,0.04626606,66180.0,66179.0,0.70394804]
[1722405108924,0.04497921,66180.0,66179.0,0.70394804]
[1722405109162,0.005363,66181.0,66180.0,0.151103]
[1722405109638,0.005363,66181.0,66180.0,1.14894804]
[1722405110055,0.005363,66181.0,66180.0,1.45115404]
[1722405110508,0.005363,66181.0,66180.0,1.47415404]
[1722405111559,0.005363,66181.0,66180.0,1.22907966]
[1722405111764,0.005363,66181.0,66180.0,0.89774204]
[1722405111973,0.005363,66181.0,66180.0,1.18594804]
[1722405112713,0.005363,66181.0,66180.0,1.19994804]
[1722405112913,0.005363,66181.0,66180.0,0.89774204]
[1722405113112,0.005363,66181.0,66180.0,0.27863304]
[1722405113322,0.005363,66181.0,66180.0,0.44373604]
[1722405113705,0.005363,66181.0,66180.0,0.73194204]
[1722405113923,0.005363,66181.0,66180.0,0.25063304]
[1722405114182,0.005363,66181.0,66180.0,0.27863304]
[1722405114390,0.005363,66181.0,66180.0,0.42973604]
[1722405114618,0.005363,66181.0,66180.0,0.71794204]
[1722405114818,0.005363,66181.0,66180.0,1.02014804]
[1722405115074,0.005363,66181.0,66180.0,1.03414804]
[1722405115387,0.005363,66181.0,66180.0,1.02014804]
[1722405115605,0.005363,66181.0,66180.0,1.05714804]
[1722405115809,0.005363,66181.0,66180.0,0.75494204]
[1722405116233,0.005363,66181.0,66180.0,1.27534804]
[1722405116435,0.005363,66181.0,66180.0,1.71845404]
[1722405116657,0.005363,66181.0,66180.0,1.50025404]
[1722405116858,0.005363,66181.0,66180.0,0.79304204]
[1722405117058,0.005363,66181.0,66180.0,1.09524804]
[1722405117262,0.005363,66181.0,66180.0,1.10924804]
[1722405117557,0.005363,66181.0,66180.0,1.09524804]
[1722405117989,0.005363,66181.0,66180.0,1.10924804]
[1722405118191,0.005363,66181.0,66180.0,1.09524804]
[1722405118666,0.005363,66181.0,66180.0,1.10924804]
[1722405119271,0.005363,66181.0,66180.0,1.09524804]
[1722405119690,0.005363,66181.0,66180.0,1.10424804]
[1722405120086,0.005363,66181.0,66180.0,1.42045404]
[1722405120296,0.005363,66181.0,66180.0,1.11824804]
[1722405120628,0.005363,66181.0,66180.0,1.16774804]
[1722405120828,0.00518114,66181.0,66180.0,1.50647404]
[1722405121012,0.00518114,66181.0,66180.0,1.49247404]
[1722405121215,0.00518114,66181.0,66180.0,1.19026804]
[1722405121438,0.00518114,66181.0,66180.0,1.20426804]
[1722405121880,0.00518114,66181.0,66180.0,1.19026804]
[1722405122190,0.00518114,66181.0,66180.0,1.20426804]
[1722405122395,0.00518114,66181.0,66180.0,0.76346204]
[1722405123222,0.00518114,66181.0,66180.0,1.06566804]
[1722405123383,0.00518114,66181.0,66180.0,1.07966804]
[1722405123793,0.00574379,66181.0,66180.0,1.06566804]
[1722405124223,0.00574379,66181.0,66180.0,1.07966804]
[1722405124668,0.00574379,66181.0,66180.0,1.38187404]
[1722405126995,0.00574379,66181.0,66180.0,1.07966804]
[1722405129083,0.00548161,66181.0,66180.0,1.07966804]
[1722405131296,0.00548161,66181.0,66180.0,1.38187404]
[1722405131495,0.00548161,66181.0,66180.0,1.53187404]
[1722405131920,0.00548161,66181.0,66180.0,1.83408004]
[1722405132165,0.0005,66189.0,66180.0,1.83408004]
[1722405132166,0.0005,66189.0,66188.0,0.755422]
[1722405132428,0.0005,66189.0,66188.0,1.02905504]
[1722405132912,0.0005,66189.0,66188.0,1.47152404]
[1722405133174,0.0005,66189.0,66188.0,1.48152404]
[1722405133393,0.0005,66189.0,66188.0,1.48552404]
[1722405133631,0.0005,66189.0,66188.0,1.49952404]
[1722405133871,0.0005,66189.0,66188.0,1.48552404]
[1722405134074,0.0005,66189.0,66188.0,1.47152404]
[1722405134330,0.0005,66189.0,66188.0,1.49952404]
[1722405134612,0.0005,66189.0,66188.0,1.48552404]
[1722405134855,0.0005,66189.0,66188.0,1.49952404]
[1722405135074,0.273283,66200.0,66198.0,0.755307]
[1722405135313,0.273283,66200.0,66199.0,1.158516]
[1722405135314,0.17386508,66200.0,66199.0,1.158516]
[1722405135541,0.17386508,66200.0,66199.0,1.71126804]
[1722405135773,0.17386508,66200.0,66199.0,1.73426804]
[1722405135999,0.05109575,66200.0,66199.0,1.73426804]
[1722405136493,0.00018234,66208.0,66199.0,1.73426804]
[1722405136494,0.00018234,66208.0,66207.0,1.275487]
[1722405136725,0.00018234,66208.0,66207.0,1.54912004]
[1722405137193,0.00047303,66209.0,66208.0,1.057273]
[1722405137437,0.00047303,66209.0,66208.0,1.33090604]
[1722405137926,0.00852,66216.0,66208.0,1.33090604]
[1722405137927,0.00852,66216.0,66215.0,1.057161]
[1722405138186,0.00852,66216.0,66215.0,1.95301383]
[1722405138664,0.00852,66216.0,66215.0,1.65096783]
[1722405139167,0.00852,66216.0,66215.0,1.65045182]
[1722405139412,0.00852,66216.0,66215.0,1.61146002]
[1722405139704,0.00852,66216.0,66215.0,1.60139404]
[1722405140173,0.00852,66216.0,66215.0,1.68475182]
[1722405140380,0.00852,66216.0,66215.0,1.60139404]
[1722405140923,0.00852,66216.0,66215.0,1.62424311]
[1722405141148,0.0001,66222.0,66221.0,1.057063]
[1722405141360,0.0001,66222.0,66221.0,1.33069604]
[1722405141962,0.0150111,66235.0,66231.0,0.150986]
[1722405141963,0.01079386,66235.0,66231.0,0.150986]
[1722405142165,0.01079386,66235.0,66232.0,0.25090039]
[1722405144262,0.01079386,66235.0,66232.0,0.26490039]
[1722405144460,0.00579386,66235.0,66232.0,0.26490039]
[1722405144674,0.00579386,66235.0,66234.0,0.00898452]
[1722405144805,0.00579386,66235.0,66234.0,0.15961756]
[1722405145016,0.00579386,66235.0,66234.0,0.25961756]
[1722405146274,0.00579386,66235.0,66234.0,0.25063304]
[1722405146700,0.00579386,66235.0,66234.0,0.26463304]
[1722405146911,0.00579386,66235.0,66234.0,0.25063304]
[1722405147160,0.00579386,66235.0,66234.0,0.26463304]
[1722405147358,0.00579386,66235.0,66234.0,0.27863304]
[1722405148196,0.00553168,66235.0,66234.0,0.27863304]
[1722405148835,0.00553168,66235.0,66234.0,0.26463304]
[1722405149034,0.00553168,66235.0,66234.0,0.26490039]
[1722405149245,0.00553168,66235.0,66234.0,0.16490039]
[1722405149465,0.76041868,66235.0,66234.0,0.15063304]
[1722405149684,0.76041868,66235.0,66234.0,0.16463304]
[1722405149887,0.45846368,66235.0,66234.0,0.16463304]
[1722405150098,0.76041868,66235.0,66234.0,0.16463304]
[1722405150303,0.00553168,66235.0,66234.0,0.17863304]
[1722405151158,0.00553168,66235.0,66234.0,0.32961204]
[1722405151379,0.00553168,66235.0,66234.0,0.17863304]
[1722405151602,0.00553168,66235.0,66234.0,0.32961204]
[1722405151818,0.00553168,66235.0,66234.0,0.31561204]
[1722405152041,0.00553168,66235.0,66234.0,0.32961204]
[1722405152250,0.00553168,66235.0,66234.0,1.03353004]
[1722405152463,0.00553168,66235.0,66234.0,0.73157104]
[1722405152693,0.00553168,66235.0,66234.0,1.03353004]
[1722405152894,0.00553168,66235.0,66234.0,0.73157104]
[1722405153125,0.00553168,66235.0,66234.0,1.01953004]
[1722405153565,0.00553168,66235.0,66234.0,0.71757104]
[1722405153765,0.00553168,66235.0,66234.0,0.73157104]
[1722405154423,0.00553168,66235.0,66234.0,0.41561204]
[1722405154694,0.00553168,66235.0,66234.0,0.26463304]
[1722405154903,0.00553168,66235.0,66234.0,0.27863304]
[1722405155301,0.00553168,66235.0,66234.0,0.43869745]
[1722405155513,0.01311722,66235.0,66234.0,0.28771845]
[1722405155733,0.00553168,66235.0,66234.0,0.43869745]
[1722405155966,0.00553168,66235.0,66234.0,0.74065645]
[1722405156789,0.00553168,66235.0,66234.0,0.74085375]
[1722405156992,0.00553168,66235.0,66234.0,0.74065645]
[1722405157785,0.00553168,66235.0,66234.0,0.73157104]
[1722405158434,0.00553168,66235.0,66234.0,1.03353004]
[1722405158847,0.00553168,66235.0,66234.0,0.73157104]
[1722405159744,0.00553168,66235.0,66234.0,0.71757104]
[1722405159919,0.00553168,66235.0,66234.0,0.71848404]
[1722405160127,0.00553168,66235.0,66234.0,1.03444304]
[1722405160360,0.00636168,66235.0,66234.0,0.73248404]
[1722405161022,0.00636168,66235.0,66234.0,0.71848404]
[1722405161374,0.00636168,66235.0,66234.0,0.73248404]
[1722405161583,0.00636168,66235.0,66234.0,0.43052504]
[1722405161785,0.00636168,66235.0,66234.0,0.73248404]
[1722405161990,0.00636168,66235.0,66234.0,0.43052504]
[1722405162192,0.00636168,66235.0,66234.0,0.73248404]
[1722405162636,0.00636168,66235.0,66234.0,1.41640204]
[1722405162840,0.00636168,66235.0,66234.0,1.48110204]
[1722405163671,0.00636168,66235.0,66234.0,0.56122504]
[1722405163887,0.00636168,66235.0,66234.0,0.84918404]
[1722405164097,0.00636168,66235.0,66234.0,1.49010204]
[1722405164305,0.00636168,66235.0,66234.0,1.50410204]
[1722405164512,0.00636168,66235.0,66234.0,1.47610204]
[1722405164920,0.00636168,66235.0,66234.0,1.49010204]
[1722405165135,0.00636168,66235.0,66234.0,1.49862204]
[1722405165398,0.00636168,66235.0,66234.0,1.59972204]
[1722405165600,0.00636168,66235.0,66234.0,1.90168104]
[1722405166209,0.00636168,66235.0,66234.0,1.93568104]
[1722405166412,0.00852,66241.0,66240.0,1.056762]
[1722405166615,0.00852,66241.0,66240.0,1.49799504]
[1722405167427,0.00852,66241.0,66240.0,1.56149504]
[1722405167646,0.00852,66241.0,66240.0,1.87342704]
[1722405168094,0.00851,66248.0,66240.0,1.87342704]
[1722405168095,0.00851,66248.0,66247.0,1.20565]
[1722405168300,0.00851,66256.0,66247.0,1.20565]
[1722405168301,0.00851,66256.0,66255.0,0.941396]
[1722405168515,0.0005,66269.0,66268.0,0.452706]
[1722405168725,0.0005,66269.0,66268.0,1.52514704]
[1722405168971,0.0005,66269.0,66268.0,1.59094704]
[1722405169192,0.0005,66269.0,66268.0,2.04715104]
[1722405169399,0.00851,66283.0,66268.0,2.04715104]
[1722405169400,0.00851,66283.0,66282.0,1.063652]
[1722405169657,0.00851,66283.0,66282.0,2.09406704]